bitfinex-derivatives/quotes_ETHF0:USTF0_20251118
["timestamp","ask_amount","ask_price","bid_price","bid_amount"]
[1763427140724,3.2078,3037.1,3036.4,0.00267596]
[1763427141135,3.2078,3037.1,3036.4,0.00761488]
[1763427141430,3.2078,3036.5,3036.4,0.00761488]
[1763427141620,3.2078,3037.0,3036.4,0.00761488]
[1763427143032,3.2078,3037.0,3036.5,3.2078]
[1763427143224,3.2078,3037.0,3036.4,0.00761488]
[1763427143933,3.2078,3037.0,3036.5,3.2078]
[1763427144635,3.2078,3037.0,3036.4,0.00761488]
[1763427145231,3.2078,3037.4,3036.7,3.2078]
[1763427145933,3.2078,3037.7,3036.7,3.2078]
[1763427146127,3.2078,3037.0,3036.4,0.00761488]
[1763427146633,3.2078,3036.9,3036.4,0.00761488]
[1763427146830,3.2078,3036.5,3035.2,3.2078]
[1763427147232,3.2078,3036.1,3035.2,3.2078]
[1763427147431,0.7247,3037.0,3035.2,3.2078]
[1763427147432,3.2078,3036.5,3035.2,3.2078]
[1763427147734,3.2078,3036.2,3035.2,3.2078]
[1763427147931,0.00493892,3036.0,3035.2,3.21142878]
[1763427148137,0.00493892,3036.0,3035.6,3.2078]
[1763427148732,0.00493892,3036.0,3035.2,3.21142878]
[1763427149137,0.00493892,3036.0,3035.8,3.2078]
[1763427151240,0.00493892,3036.0,3035.4,3.2078]
[1763427151642,3.2078,3035.7,3035.2,0.00362878]
[1763427151841,3.2113183,3035.7,3035.2,0.00362878]
[1763427152233,3.2078,3035.5,3035.2,0.00362878]
[1763427152443,0.0035183,3035.7,3035.2,0.00362878]
[1763427153238,3.2113183,3035.7,3035.2,0.00362878]
[1763427153945,3.2078,3035.6,3035.2,0.00362878]
[1763427154440,3.2078,3035.6,3034.5,3.2078]
[1763427154630,3.2078,3034.7,3034.0,3.2078]
[1763427155041,3.2078,3034.7,3033.7,0.03296359]
[1763427155250,3.2078,3035.1,3034.0,3.2078]
[1763427155538,3.2078,3034.7,3033.8,3.2078]
[1763427155739,3.2078,3035.2,3034.2,3.2078]
[1763427157038,3.2078,3034.6,3034.2,3.2078]
[1763427157338,3.2078,3035.2,3034.2,3.2078]
[1763427159346,3.2078,3035.2,3034.2,3.2078]
[1763427159643,3.2078,3035.2,3034.6,3.2078]
[1763427160345,3.2078,3035.6,3034.6,3.2078]
[1763427160541,3.2078,3035.2,3034.6,3.2078]
[1763427162334,3.2078,3035.2,3034.2,3.2078]
[1763427162540,0.76736469,3035.1,3034.2,3.2078]
[1763427162738,3.2078,3035.2,3034.6,3.2078]
[1763427162941,0.0035183,3035.7,3034.6,3.2078]
[1763427163145,0.0035183,3035.7,3035.6,3.2078]
[1763427163532,3.2078,3036.9,3035.7,0.6944]
[1763427163739,3.2078,3036.9,3035.9,3.2078]
[1763427164742,0.00493892,3036.7,3036.1,0.00493892]
[1763427165251,3.2078,3036.5,3036.1,0.00493892]
[1763427165436,0.00493892,3036.7,3036.1,0.00493892]
[1763427166241,0.00493892,3036.7,3036.3,3.2078]
[1763427166945,0.00493892,3036.7,3036.1,0.00493892]
[1763427168741,3.2078,3036.5,3036.1,0.00493892]
[1763427168944,0.76980106,3036.4,3035.5,3.2078]
[1763427169146,3.2078,3036.2,3035.5,3.2078]
[1763427169445,0.5651,3036.6,3035.5,3.2078]
[1763427169641,0.77016396,3036.5,3036.3,3.2078]
[1763427169841,0.00493892,3036.7,3036.3,3.2078]
[1763427170142,0.00493892,3036.7,3036.3,3.21010643]
[1763427173448,0.00493892,3036.7,3036.6,0.6944]
[1763427173647,3.2078,3037.9,3036.6,0.6944]
[1763427173841,0.77027613,3037.8,3036.9,3.2078]
[1763427174241,3.2078,3037.9,3037.3,3.2078]
[1763427174450,1.18008808,3038.7,3037.8,3.2078]
[1763427174646,0.77491588,3038.6,3038.3,3.2078]
[1763427174852,0.00493892,3038.6,3038.4,0.6944]
[1763427175049,3.2078,3039.3,3038.4,3.9848]
[1763427175250,3.2078,3039.3,3038.8,3.2078]
[1763427175947,3.2118784,3039.3,3038.8,3.21187347]
[1763427176955,0.0040784,3039.3,3038.8,3.21187347]
[1763427177248,0.0040784,3039.3,3039.2,3.2078]
[1763427177454,0.00493892,3039.4,3039.3,0.6007]
[1763427178256,0.00493892,3039.4,3039.2,3.2078]
[1763427178452,0.00493892,3039.4,3038.8,0.00407347]
[1763427178453,6.0,3039.3,3038.8,0.00407347]
[1763427178649,3.2078,3039.1,3038.8,0.00407347]
[1763427178849,3.2078,3038.9,3038.8,0.00407347]
[1763427179044,3.2078,3038.9,3038.2,3.2078]
[1763427179454,3.2078,3038.8,3038.2,3.2078]
[1763427179650,0.00875275,3039.4,3038.7,3.2078]
[1763427179849,3.2078,3038.9,3038.3,3.2078]
[1763427180050,3.2078,3038.9,3038.3,3.21181246]
[1763427180252,3.2078,3038.9,3038.3,0.00401246]
[1763427180645,0.00875275,3039.4,3038.6,3.2078]
[1763427181043,0.00875275,3039.4,3039.1,3.2078]
[1763427181247,0.00875275,3039.4,3038.7,3.2078]
[1763427181451,0.00875275,3039.4,3039.1,3.2078]
[1763427181646,0.00875275,3039.4,3038.6,3.2078]
[1763427182258,3.2078,3038.7,3038.3,0.00401246]
[1763427182858,3.2078,3039.3,3038.6,3.2078]
[1763427183063,0.00875275,3039.4,3039.3,0.6007]
[1763427183355,0.00875275,3039.4,3039.0,3.2078]
[1763427183762,0.00875275,3039.4,3039.3,0.6007]
[1763427183950,3.2078,3040.4,3039.3,0.6007]
[1763427184156,3.2078,3040.9,3040.2,0.6007]
[1763427184356,3.2078,3040.9,3039.6,3.2078]
[1763427184556,3.2078,3040.4,3039.3,0.6007]
[1763427184853,3.2078,3040.4,3039.5,3.2078]
[1763427185047,0.00493892,3040.3,3040.2,0.6007]
[1763427185759,3.2078,3041.0,3040.2,6.6007]
[1763427185954,3.2078,3041.0,3040.2,0.6007]
[1763427186150,3.2078,3041.0,3039.6,0.00493892]
[1763427186357,3.2078,3040.9,3040.2,0.6007]
[1763427186552,3.2078,3040.5,3039.7,3.2078]
[1763427186757,0.00493892,3040.4,3039.7,3.2078]
[1763427187347,0.00493892,3040.4,3039.6,0.00493892]
[1763427187556,3.2078,3039.9,3039.6,0.00493892]
[1763427188060,9.2078,3039.9,3039.6,0.00493892]
[1763427188252,6.0,3039.8,3038.3,0.00401246]
[1763427188460,3.2078,3039.1,3038.5,3.2078]
[1763427188655,3.2078,3039.1,3038.3,0.00401246]
[1763427188855,3.2078,3039.1,3038.4,0.6007]
[1763427189050,3.2078,3039.6,3038.6,3.2078]
[1763427189356,3.2078,3039.6,3038.8,0.00493892]
[1763427189565,3.2078,3039.0,3038.8,0.00493892]
[1763427190152,3.2078,3039.4,3038.8,0.00493892]
[1763427190362,3.2078,3039.0,3038.8,0.00493892]
[1763427191356,3.8262,3039.0,3038.3,0.00401246]
[1763427191562,3.2078,3038.6,3038.3,0.00401246]
[1763427192865,0.00493892,3038.8,3038.3,0.00401246]
[1763427194358,3.2078,3038.4,3038.3,0.00401246]
[1763427195962,3.2078,3038.4,3036.9,3.2078]
[1763427195963,3.8311,3038.4,3036.9,3.2078]
[1763427196163,3.2078,3037.9,3036.9,3.2078]
[1763427196466,3.2078,3037.1,3036.3,3.2078]
[1763427196767,3.2078,3036.7,3036.3,0.00305037]
[1763427197063,3.2078,3036.6,3036.4,0.00493892]
[1763427197463,3.21273892,3037.0,3036.4,0.00493892]
[1763427197659,3.2078,3036.6,3036.4,0.00493892]
[1763427198170,3.2078,3036.6,3035.8,3.2078]
[1763427198366,3.2078,3036.2,3035.2,3.2078]
[1763427198763,3.2078,3036.2,3034.1,3.092]
[1763427198764,3.2078,3035.6,3034.1,3.2078]
[1763427199066,3.2078,3035.2,3034.1,3.21111342]
[1763427199260,3.21273892,3035.2,3034.1,3.21111342]
[1763427200567,3.2078,3034.4,3034.1,0.00331342]
[1763427200872,3.21048393,3034.4,3034.1,0.00331342]
[1763427204777,0.00268393,3034.4,3034.1,0.00331342]
[1763427205270,3.2078,3034.2,3034.1,0.00331342]
[1763427205969,0.00268393,3034.4,3034.1,6.00331342]
[1763427206175,0.00268393,3034.4,3034.1,0.00331342]
[1763427206773,3.2078,3034.3,3034.1,0.00331342]
[1763427207175,0.00493892,3035.2,3034.1,0.00331342]
[1763427207176,3.2078,3035.1,3034.1,0.00331342]
[1763427207476,3.2078,3036.4,3034.9,3.2078]
[1763427207677,3.2078,3036.4,3035.4,3.2078]
[1763427207887,3.2078,3036.4,3034.9,3.2078]
[1763427208083,3.2078,3035.8,3035.1,3.2078]
[1763427208285,3.2078,3035.8,3035.0,3.2078]
[1763427208286,3.21136021,3035.8,3035.0,3.2078]
[1763427208486,0.00493892,3035.7,3035.1,3.21273892]
[1763427208692,0.00493892,3035.7,3035.1,0.00493892]
[1763427209084,0.00493892,3035.7,3035.4,3.2078]
[1763427209588,3.2078,3036.8,3035.7,0.5658]
[1763427209891,3.2078,3036.8,3035.9,3.2078]
[1763427210192,3.2078,3036.3,3035.4,3.2078]
[1763427210385,0.00493892,3036.2,3035.4,3.2078]
[1763427210691,0.00909357,3036.2,3035.4,3.2078]
[1763427211291,3.2078,3035.9,3035.4,3.2078]
[1763427211478,3.2078,3035.5,3035.1,0.00493892]
[1763427212088,3.2078,3035.9,3035.1,0.00493892]
[1763427212384,3.2078,3035.9,3035.2,3.2078]
[1763427212584,0.00909357,3036.2,3035.6,3.2078]
[1763427213090,3.2078,3035.7,3035.1,0.00493892]
[1763427213389,3.2078,3035.7,3035.3,3.2078]
[1763427214593,3.2078,3035.7,3035.1,0.00493892]
[1763427215184,3.2078,3036.1,3035.1,0.00493892]
[1763427215389,3.2078,3036.1,3035.4,3.2078]
[1763427216082,3.2078,3036.1,3035.2,1.72145206]
[1763427216083,3.2078,3036.1,3035.7,3.7736]
[1763427216489,0.00909357,3036.2,3036.0,1.72145206]
[1763427216685,0.00909357,3036.2,3035.7,13.0672]
[1763427216686,3.2078,3037.3,3036.1,3.2078]
[1763427217193,3.2078,3037.3,3036.5,3.2078]
[1763427217384,3.2078,3036.7,3035.7,3.7736]
[1763427217589,3.2078,3036.7,3035.7,3.2078]
[1763427217791,0.00493892,3036.5,3035.7,3.21038695]
[1763427221394,0.00493892,3036.5,3036.1,3.2078]
[1763427222996,0.00493892,3036.5,3036.0,0.5658]
[1763427223193,0.00493892,3036.5,3036.1,3.2078]
[1763427229208,0.00303569,3036.7,3036.1,6.5006]
[1763427229402,0.00303569,3036.7,3036.1,3.2078]
[1763427229902,3.569e-05,3036.7,3036.6,3.2078]
[1763427231299,3.569e-05,3036.7,3036.0,3.7736]
[1763427231902,0.7706459,3036.7,3036.0,3.2078]
[1763427233001,3.2078,3036.5,3036.0,3.2078]
[1763427233203,3.2078,3036.1,3035.7,0.00258695]
[1763427233603,0.77171712,3036.0,3035.7,0.00258695]
[1763427234002,0.77171712,3036.0,3035.5,3.2078]
[1763427234811,0.77171712,3036.0,3035.1,3.21273892]
[1763427234999,0.77171712,3036.0,3035.1,3.2155035]
[1763427235205,0.77171712,3036.0,3035.1,0.0077035]
[1763427235206,3.2078,3035.3,3035.1,0.0077035]
[1763427235404,0.77171712,3035.2,3035.1,0.0077035]
[1763427235600,0.00493892,3035.5,3035.1,0.0077035]
[1763427235804,3.2078,3035.3,3034.2,3.2078]
[1763427236105,0.77171712,3035.2,3034.2,3.2078]
[1763427236308,1.9518052,3035.2,3034.2,3.2078]
[1763427236706,1.9518052,3035.2,3034.5,0.00493892]
[1763427237009,4.38788808,3034.9,3034.4,0.00293027]
[1763427237307,0.77171712,3034.8,3034.4,0.54503027]
[1763427237710,1.18008808,3035.4,3034.7,3.2078]
[1763427237920,0.77365553,3035.3,3034.7,3.21273892]
[1763427238212,0.77348018,3035.2,3034.7,3.21273892]
[1763427238413,3.21273892,3035.5,3034.7,3.21273892]
[1763427238711,0.773461,3035.4,3034.7,3.21273892]
[1763427239411,1.95354908,3035.4,3034.7,3.21273892]
[1763427240216,0.773461,3035.3,3035.2,0.5421]
[1763427240713,4.38788808,3036.4,3035.2,2.26422018]
[1763427240905,3.2078,3036.4,3035.9,3.2078]
[1763427241417,3.569e-05,3036.7,3035.9,3.7499]
[1763427241713,0.00493892,3036.6,3035.9,3.2078]
[1763427242413,0.00493892,3036.6,3036.0,0.5421]
[1763427242815,3.2078,3036.5,3035.4,3.2078]
[1763427243412,4.38788808,3036.5,3035.4,3.2078]
[1763427243714,1.18008808,3036.4,3035.4,3.2078]
[1763427244011,4.38788808,3036.5,3035.4,3.2078]
[1763427244318,3.2078,3035.8,3035.4,3.2078]
[1763427244914,1.18008808,3036.1,3035.4,3.2078]
[1763427245414,3.2078,3036.2,3035.9,0.5421]
[1763427245616,3.21273892,3036.6,3035.9,0.5421]
[1763427245825,3.21273892,3036.6,3035.8,3.2078]
[1763427246113,3.42423892,3036.6,3035.8,3.2078]
[1763427246317,3.2078,3036.2,3035.4,3.2078]
[1763427247414,4.38788808,3036.2,3035.4,3.2078]
[1763427247718,3.2078,3036.2,3035.4,3.2078]
[1763427247911,4.38788808,3036.2,3035.4,3.2078]
[1763427248421,3.2078,3036.2,3035.4,3.2078]
[1763427248623,4.38788808,3036.2,3035.4,3.2078]
[1763427249219,3.2078,3036.2,3035.4,3.2078]
[1763427249420,3.2078,3035.8,3035.4,3.2078]
[1763427250012,3.2078,3036.4,3035.6,1.72212018]
[1763427250220,3.2078,3036.4,3035.8,3.2078]
[1763427250718,3.2078,3036.4,3035.3,3.2078]
[1763427251019,3.2078,3036.4,3035.7,3.2078]
[1763427251212,3.2078,3036.4,3035.9,0.5421]
[1763427252431,3.2078,3036.4,3035.7,3.2078]
[1763427253313,3.2078,3036.4,3035.6,3.2078]
[1763427253619,0.76991317,3036.3,3035.2,3.7499]
[1763427253814,0.76991317,3036.3,3035.2,3.2078]
[1763427254018,0.76991317,3036.3,3035.2,3.7499]
[1763427254208,0.76991317,3036.3,3035.2,0.5421]
[1763427254422,3.7623,3036.0,3035.2,3.2078]
[1763427254727,3.2078,3036.0,3035.2,3.6682]
[1763427255111,3.2078,3036.0,3035.2,0.4604]
[1763427255316,3.2078,3036.0,3035.2,3.6682]
[1763427255723,3.2078,3036.0,3035.2,0.4604]
[1763427256222,3.2078,3036.0,3035.2,3.6682]
[1763427257817,3.2078,3036.5,3035.6,3.2078]
[1763427258121,3.2078,3036.5,3035.4,1.72212018]
[1763427258122,0.76967453,3036.4,3035.4,1.72212018]
[1763427258423,3.2078,3036.0,3035.1,3.2078]
[1763427259428,3.2078,3036.0,3035.2,0.5266]
[1763427259724,3.2078,3036.4,3035.5,3.2078]
[1763427259922,0.76991826,3036.3,3035.5,3.2078]
[1763427260225,3.2078,3036.0,3035.3,3.2078]
[1763427260427,3.2078,3036.0,3035.2,3.7344]
[1763427262322,3.2078,3036.0,3035.2,3.2078]
[1763427262519,3.2078,3036.0,3035.2,3.7344]
[1763427262927,3.2078,3036.0,3035.4,1.72212018]
[1763427263617,3.2078,3036.4,3035.8,3.2078]
[1763427263817,0.77052977,3036.3,3035.8,3.2078]
[1763427264018,3.2078,3036.4,3035.9,0.5266]
[1763427266227,0.00493892,3036.6,3035.9,0.5266]
[1763427267524,3.2078,3036.5,3035.8,3.2078]
[1763427267731,0.77057427,3036.4,3035.8,3.2078]
[1763427268429,0.77057427,3036.4,3035.9,0.4801]
[1763427268632,0.77057427,3036.4,3035.4,3.2078]
[1763427268931,3.2078,3035.9,3035.4,3.2078]
[1763427269430,1.18008808,3036.4,3035.4,3.2078]
[1763427269431,3.2078,3036.3,3035.4,3.2078]
[1763427269631,4.0246,3035.5,3035.0,3.2078]
[1763427269830,3.2078,3035.9,3035.0,4.92992018]
[1763427270128,0.77070545,3035.8,3035.0,3.2078]
[1763427270431,3.2078,3035.5,3035.0,3.2078]
[1763427270745,0.77070545,3035.4,3035.0,3.2078]
[1763427270921,0.77070545,3035.4,3034.7,0.00493892]
[1763427271926,3.2078,3035.9,3035.3,0.8031]
[1763427272120,0.77055209,3035.8,3034.7,0.00493892]
[1763427272323,3.2078,3035.4,3034.7,0.00493892]
[1763427273634,0.8168,3034.8,3034.7,0.00493892]
[1763427273828,1.3188,3034.5,3033.3,2.35107691]
[1763427274123,3.2078,3033.8,3033.0,2.35107691]
[1763427274330,3.2078,3033.8,3032.9,7.51018254]
[1763427274529,3.2078,3033.8,3032.9,3.2078]
[1763427274723,3.2078,3033.8,3033.1,0.00493892]
[1763427274928,3.21127049,3033.8,3033.1,0.00892247]
[1763427275125,3.21127049,3033.8,3033.1,0.48902247]
[1763427276523,3.2078,3034.2,3033.8,0.4801]
[1763427276723,3.2078,3034.6,3033.9,3.2078]
[1763427277532,3.21150032,3034.6,3033.9,3.2078]
[1763427277935,3.21150032,3034.6,3033.8,0.4801]
[1763427278537,3.21150032,3034.6,3033.9,3.2078]
[1763427279530,3.21150032,3034.6,3033.8,3.6879]
[1763427279833,3.21150032,3034.6,3033.8,0.4801]
[1763427280130,3.21150032,3034.6,3033.8,3.2078]
[1763427281333,0.502,3034.5,3033.8,3.2078]
[1763427283632,3.2078,3033.9,3033.1,0.48902247]
[1763427283935,0.502,3034.5,3033.1,0.00892247]
[1763427283936,3.2078,3033.3,3033.1,0.00892247]
[1763427284239,1.26966853,3033.8,3033.1,0.00892247]
[1763427284240,0.00493892,3033.5,3033.1,0.00892247]
[1763427285145,0.00493892,3033.5,3033.1,0.48902247]
[1763427285846,0.00493892,3033.5,3033.4,3.2078]
[1763427287246,0.00493892,3033.5,3033.1,0.00892247]
[1763427287748,3.2078,3033.3,3033.1,0.00892247]
[1763427288340,3.2078,3033.3,3032.4,3.6879]
[1763427288644,3.2078,3033.3,3032.4,0.4801]
[1763427289235,3.2078,3032.9,3032.4,0.4801]
[1763427289445,3.2078,3033.3,3032.4,0.48293685]
[1763427289837,3.2078,3033.3,3032.4,3.69073685]
[1763427290546,3.2078,3032.5,3032.3,0.00493892]
[1763427290741,0.2281,3032.4,3031.6,3.2078]
[1763427290941,3.2078,3032.1,3031.6,3.2078]
[1763427291646,3.21065319,3032.1,3031.6,3.21205473]
[1763427292047,3.21065319,3032.1,3031.6,0.00425473]
[1763427293846,0.8168,3031.7,3031.6,0.00425473]
[1763427294143,4.5266,3031.7,3030.7,3.2078]
[1763427294349,3.2078,3031.2,3030.7,3.2078]
[1763427294847,3.2078,3031.2,3031.1,0.8031]
[1763427295150,3.2078,3031.6,3031.1,4.01490001]
[1763427295746,3.2078,3031.6,3031.1,0.80710001]
[1763427296451,3.2078,3031.6,3031.5,0.8031]
[1763427296645,3.2078,3031.6,3031.1,0.00400001]
[1763427296847,0.7486,3031.2,3031.1,0.00400001]
[1763427297056,3.9564,3031.2,3031.1,0.00400001]
[1763427297748,3.2078,3031.2,3031.1,0.00400001]
[1763427298250,9.2078,3031.2,3029.5,6.3538]
[1763427298451,3.2078,3030.9,3030.0,3.2078]
[1763427298749,3.2078,3030.5,3029.6,3.6879]
[1763427298948,0.00494763,3030.4,3029.6,3.6879]
[1763427299144,0.00494763,3030.4,3029.6,3.6917037]
[1763427299348,0.00494763,3030.4,3029.6,3.6539037]
[1763427300448,0.00494763,3030.4,3029.6,0.4461037]
[1763427300645,0.476,3030.3,3029.6,0.0038037]
[1763427300948,3.2078,3029.7,3029.6,0.0038037]
[1763427301154,3.21156567,3029.7,3029.6,0.0038037]
[1763427301747,0.476,3029.6,3028.7,0.03301801]
[1763427301953,3.2078,3028.8,3028.7,0.03301801]
[1763427302653,3.2078,3028.8,3028.7,0.03714754]
[1763427303244,0.1679,3028.2,3026.8,0.4423]
[1763427303452,3.2078,3028.1,3026.8,3.6501]
[1763427303757,0.00494763,3027.8,3026.8,3.6501]
[1763427303948,0.00494763,3027.8,3027.2,3.2078]
[1763427304150,0.00494763,3027.8,3027.6,3.2078]
[1763427304456,0.00494763,3027.8,3027.5,0.4423]
[1763427304756,0.00494763,3027.8,3027.6,3.2078]
[1763427304948,3.2078,3029.2,3028.0,1.95130563]
[1763427305261,3.2078,3029.2,3028.5,5.15910563]
[1763427305555,0.00376567,3029.7,3029.0,1.95130563]
[1763427305758,0.00376567,3029.7,3029.4,3.2078]
[1763427305955,0.00376567,3029.7,3029.4,0.00273427]
[1763427306251,0.00376567,3029.7,3029.4,3.21053427]
[1763427306452,3.21156567,3029.7,3029.4,0.00273427]
[1763427306656,0.476,3029.6,3029.4,0.00273427]
[1763427306855,0.476,3029.6,3028.2,3.6501]
[1763427307057,3.2078,3029.0,3028.1,5.9358]
[1763427307855,3.2078,3028.6,3028.1,2.73149101]
[1763427308653,0.476,3029.6,3028.1,2.73149101]
[1763427308654,3.2078,3029.0,3028.1,2.73149101]
[1763427308858,3.2078,3029.4,3028.1,0.00349101]
[1763427309456,3.2078,3029.4,3028.4,3.2078]
[1763427310762,3.2078,3028.5,3028.1,0.00349101]
[1763427311559,9.2078,3028.5,3028.1,0.00349101]
[1763427311762,3.2078,3028.5,3028.1,0.00349101]
[1763427314464,3.2078,3028.5,3026.9,3.2078]
[1763427314662,0.476,3028.8,3026.9,3.2078]
[1763427314663,0.00494763,3028.0,3026.9,3.2078]
[1763427315062,0.00494763,3028.0,3027.0,1.95130563]
[1763427315255,1.95130563,3029.2,3027.7,3.2078]
[1763427315256,3.2078,3029.2,3027.7,3.2078]
[1763427315463,3.2078,3029.2,3028.2,3.2078]
[1763427315657,3.2078,3028.9,3028.1,3.2078]
[1763427316367,0.00494763,3028.8,3028.2,0.00494763]
[1763427316566,0.00494763,3028.8,3028.2,3.30654763]
[1763427316775,3.2078,3029.3,3028.6,3.2078]
[1763427317769,3.21274763,3029.3,3028.6,3.2078]
[1763427318672,0.00494763,3029.3,3029.0,5.15910563]
[1763427318970,0.00376567,3029.7,3029.0,5.15910563]
[1763427319168,3.2078,3030.4,3029.6,2.40290563]
[1763427319472,3.2078,3031.3,3030.0,3.2078]
[1763427319775,3.2078,3031.3,3030.5,3.2078]
[1763427319976,0.00494763,3031.2,3030.6,0.00494763]
[1763427320170,0.00800189,3031.2,3030.6,0.0089083]
[1763427321183,0.4172,3031.0,3030.6,0.0089083]
[1763427321372,3.2078,3030.9,3029.9,3.2078]
[1763427321671,0.00800189,3031.2,3030.7,3.2078]
[1763427322381,3.2078,3030.9,3030.7,0.00330448]
[1763427323568,0.42520189,3031.2,3030.7,0.00330448]
[1763427323873,0.00800189,3031.2,3030.7,0.00330448]
[1763427324062,0.42520189,3031.2,3030.7,0.00330448]
[1763427326866,0.42520189,3031.2,3031.0,3.2078]
[1763427327870,0.00800189,3031.2,3031.0,3.2078]
[1763427330375,0.4516,3031.0,3030.7,0.00330448]
[1763427331368,0.00800189,3031.2,3030.8,4.93476237]
[1763427333478,0.00800189,3031.2,3030.8,3.2078]
[1763427334075,0.4516,3031.0,3030.8,3.2078]
[1763427334280,0.4516,3031.0,3030.7,0.00330448]
[1763427334281,3.2078,3030.9,3030.7,0.00330448]
[1763427335374,0.4516,3030.3,3030.0,3.2078]
[1763427335679,3.6594,3031.0,3030.0,3.2078]
[1763427336582,3.6594,3031.0,3030.2,0.00494763]
[1763427338488,0.4516,3031.0,3030.4,3.2078]
[1763427338980,3.6594,3031.0,3030.4,3.2078]
[1763427341382,0.45960189,3031.2,3030.8,3.2078]
[1763427343189,0.4516,3030.6,3030.2,0.00494763]
[1763427343486,0.4516,3030.6,3030.2,3.21274763]
[1763427346376,0.4516,3030.6,3030.2,0.00494763]
[1763427347387,3.2078,3030.9,3030.2,0.00494763]
[1763427347581,0.77893463,3030.8,3030.2,0.00494763]
[1763427348576,0.4516,3030.6,3030.2,0.00494763]
[1763427349182,3.2078,3030.9,3030.2,0.00494763]
[1763427349391,0.77994332,3030.8,3030.2,0.00494763]
[1763427349591,0.77994332,3030.8,3030.2,3.21274763]
[1763427350179,0.7493,3030.3,3030.2,3.21274763]
[1763427350588,0.4516,3030.6,3030.2,3.21274763]
[1763427350784,0.7493,3030.3,3030.2,3.21274763]
[1763427350989,0.7493,3030.3,3030.2,0.00494763]
[1763427351397,0.7493,3029.9,3029.4,3.2078]
[1763427352085,0.7493,3029.9,3029.5,1.72696237]
[1763427352287,3.6594,3030.0,3029.5,1.72696237]
[1763427352499,3.6594,3030.0,3029.5,1.72957288]
[1763427353194,3.2078,3030.0,3029.9,0.5126]
[1763427353490,0.4516,3030.6,3029.9,0.5126]
[1763427353491,3.2078,3030.5,3029.9,0.5126]
[1763427353697,0.77910504,3030.4,3029.9,0.5126]
[1763427353884,3.2078,3030.5,3029.8,3.2078]
[1763427354290,0.7493,3029.9,3029.8,3.2078]
[1763427354693,3.2078,3030.5,3029.8,3.2078]
[1763427355298,0.7493,3029.9,3029.8,3.2078]
[1763427355797,0.7493,3029.9,3029.5,0.00261051]
[1763427357096,0.7493,3029.6,3029.4,0.79941051]
[1763427357297,0.3139,3029.4,3028.2,3.3707942]
[1763427357504,3.2078,3028.3,3027.6,0.4071]
[1763427357694,3.2078,3027.9,3027.6,0.4071]
[1763427357894,3.2078,3027.9,3027.0,0.2829]
[1763427358195,3.21084145,3027.9,3027.1,3.21196718]
[1763427359191,3.2078,3027.5,3027.1,0.00416718]
[1763427359395,3.2078,3027.5,3027.4,1.72696237]
[1763427359597,0.00304145,3027.9,3027.5,0.4071]
[1763427359804,0.00304145,3027.9,3027.8,3.2078]
[1763427360294,0.00304145,3027.9,3027.5,0.4071]
[1763427360603,3.2078,3027.8,3027.1,0.00416718]
[1763427360805,3.2078,3027.4,3027.1,0.00416718]
[1763427361002,0.00494763,3027.6,3027.3,3.2078]
[1763427361392,3.2078,3027.5,3027.1,0.00416718]
[1763427361898,0.7,3027.2,3027.1,0.00416718]
[1763427362295,3.6119,3027.5,3027.1,0.00416718]
[1763427362491,0.00494763,3027.6,3027.5,0.4071]
[1763427362693,1.87313185,3028.9,3027.5,0.4071]
[1763427362694,3.2078,3029.2,3028.2,0.4071]
[1763427362895,3.2078,3029.2,3028.6,1.72696237]
[1763427363296,3.2078,3029.2,3028.4,3.2078]
[1763427363607,0.00494763,3029.1,3028.5,0.00494763]
[1763427363797,0.00494763,3029.1,3028.8,3.2078]
[1763427363994,0.00494763,3029.1,3028.8,4.93476237]
[1763427364494,0.00494763,3029.1,3028.8,3.2078]
[1763427367402,0.00255604,3029.2,3028.9,0.4071]
[1763427367595,3.2078,3030.2,3028.9,0.4071]
[1763427367596,3.2078,3030.2,3028.9,9.7079]
[1763427367797,3.2078,3030.2,3029.7,3.2078]
[1763427368111,3.2078,3029.8,3028.9,3.6149]
[1763427368399,0.00494763,3029.7,3028.9,3.2078]
[1763427368600,0.4041,3029.6,3028.9,3.21179966]
[1763427368813,3.2078,3029.2,3028.5,0.00494763]
[1763427369001,3.2078,3028.7,3028.5,0.00494763]
[1763427369800,3.2078,3028.7,3028.5,0.00867021]
[1763427370699,0.4041,3029.6,3028.5,0.00867021]
[1763427370700,3.2078,3029.3,3028.5,0.00867021]
[1763427372604,3.6079,3028.9,3027.9,3.2078]
[1763427372817,3.2078,3028.5,3027.5,3.2078]
[1763427373613,3.2078,3028.0,3027.7,0.00494763]
[1763427374603,3.2078,3028.0,3026.5,3.2078]
[1763427374913,3.2078,3027.4,3026.5,3.2078]
[1763427375712,3.21117976,3027.4,3026.5,3.2118652]
[1763427376710,0.00337976,3027.4,3027.0,3.2078]
[1763427376910,0.00337976,3027.4,3026.6,3.2078]
[1763427377101,3.2078,3027.2,3026.6,3.2078]
[1763427378005,3.2078,3027.2,3026.5,0.0040652]
[1763427378309,0.7,3026.6,3026.5,0.0040652]
[1763427378503,3.9078,3026.6,3026.5,0.0040652]
[1763427378708,3.2078,3026.6,3026.5,0.0040652]
[1763427379298,3.2078,3026.6,3025.9,3.2078]
[1763427379705,3.21275614,3026.6,3025.9,3.2078]
[1763427380814,3.21275614,3026.6,3025.9,3.21018542]
[1763427382607,0.7721,3026.0,3025.9,3.21018542]
[1763427382811,0.7721,3026.0,3025.9,0.00238542]
[1763427383121,0.7721,3025.6,3025.1,3.2078]
[1763427383416,0.7721,3025.6,3024.7,0.4071]
[1763427383417,3.2078,3025.5,3024.6,3.2078]
[1763427383614,3.2078,3025.1,3024.6,3.2078]
[1763427383814,3.2078,3025.5,3024.6,3.2078]
[1763427384015,3.21109612,3025.5,3024.6,3.21113811]
[1763427384618,3.2078,3025.1,3024.6,3.21113811]
[1763427384911,3.2078,3025.1,3024.6,0.00333811]
[1763427385413,3.3368,3024.7,3024.6,0.00333811]
[1763427385603,3.3368,3024.7,3023.7,3.2078]
[1763427386405,0.00495614,3025.0,3024.6,3.2078]
[1763427386610,0.00495614,3025.0,3024.7,2.19058292]
[1763427386818,0.00495614,3025.0,3024.8,6.0]